Cogmind - Beta 13 @@@ ROGUE MODE // 2024.04.05 @ 13:07:04 Player: Vriska Result: Destroyed by S-10 Pest with Light Assault Rifle Performance ------------- Evolutions (0) 0 Regions Visited (2) 400 Robots Destroyed (26) 130 Value Destroyed (525) 525 Prototype IDs (0) 0 Alien Tech Used (0) 0 Bonus (0) 0 TOTAL SCORE: 1055 Bonus ------- None Cogmind --------- Core Integrity 0/250 Matter 223/300 Energy 258/265 System Corruption 2% Temperature Cool (0) Movement Core (150) Ox2 Location -10/Subcaves Parts ------- > --- POWER (1) -------- Improved Ion Engine > --- PROPULSION (2) --- (None) > --- UTILITY (2) ------ Sensor Array Signal Interpreter > --- WEAPON (2) ------- Mining Laser > --- INVENTORY (5) ---- ECM Suite Datajack Peak State ------------ > --- POWER ------------ Improved Ion Engine > --- PROPULSION ------- Wheel > --- UTILITY ---------- Sensor Array Signal Interpreter > --- WEAPON ----------- Barrage Gun Flamer > --- INVENTORY -------- ECM Suite Datajack Mining Laser [Rating: 10] Favorites ----------- Power Ion Engine Engine Ion Engine Propulsion Aluminum Leg Leg Aluminum Leg Wheel Wheel Hover Unit Hover Unit Flight Unit Flight Unit Utility Signal Interpreter Device Sensor Array Storage Small Storage Unit Processor Signal Interpreter Protection Light Armor Plating Weapon Assault Rifle Ballistic Gun Assault Rifle Ballistic Cannon Light Cannon Launcher Grenade Launcher Special Weapon Mining Laser Build | -11 -10 -10 ------- Run | Yrd Mat Sub Slots Evolved . | . . . Power . | . . . Propulsion . | . . . Utility . | . . . Weapon . | . . . Parts Attached 29 | 6 16 7 Power 4 | 1 2 1 Engine 4 | 1 2 1 Core . | . . . Reactor . | . . . Propulsion 9 | 2 6 1 Treads . | . . . Leg 4 | 2 2 . Wheel 1 | . . 1 Hover 2 | . 2 . Flight 2 | . 2 . Utility 7 | 1 6 . Device 3 | . 3 . Storage 1 | 1 . . Processor 1 | . 1 . Hackware . | . . . Protection 2 | . 2 . Artifact . | . . . Weapon 9 | 2 2 5 Energy Gun . | . . . Energy Cannon . | . . . Ballistic Gun 4 | 2 . 2 Ballistic Cannon 2 | . 1 1 Launcher 1 | . 1 . Special Weapon 2 | . . 2 Impact Weapon . | . . . Slashing Weapon . | . . . Piercing Weapon . | . . . Special Melee Weapon . | . . . Unidentified Prototypes . | . . . Parts Lost 12 | . 4 8 Power 1 | . . 1 Propulsion 5 | . 2 3 Utility 2 | . 2 . Weapon 4 | . . 4 Highest Loss Streak 4 | . 4 4 To Critical Strikes . | . . . Average Slot Usage (%) 88 | . 92 83 Engine 13 | . 13 13 Leg 8 | . 12 . Wheel 3 | . . 9 Hover 8 | . 10 5 Flight 1 | . 2 . Device 10 | . 7 14 Storage 3 | . 4 . Processor 9 | . 6 14 Protection 1 | . 3 . Ballistic Gun 15 | . 18 10 Ballistic Cannon 7 | . 4 13 Launcher 3 | . 4 3 Naked Turns . | . . . Heaviest Build 15 | 14 15 14 Greatest Support 26 | 20 26 12 Greatest Overweight (x) 4 | . 2 4 Average Overweight (x) . | . . . Largest Inventory Capacity 8 | 8 8 5 Average Capacity 5 | 7 6 5 Most Carried 5 | 5 5 5 Average Carried 3 | 1 3 4 Final Capacity 8 | 8 5 5 Final Carried 4 | 1 4 2 Class Distribution -------------------- 77% | Mutant 22% | Scavenger-Mutant Dominant Class ---------------- Mutant | -10/Materials Mutant | -10/Subcaves Resources | -11 -10 -10 ----------- Run | Yrd Mat Sub Matter Collected 953 | 260 531 162 Remotely . | . . . Salvage Created 645 | . 503 142 Parts 61 | . 49 12 Haulers Intercepted 2 | . 2 . Recyclers Shooed 1 | . 1 . Parts Field Recycled . | . . . Retrieved Matter . | . . . Parts Self-Destructed 16 | . . 16 Prevented . | . . . Kills | -11 -10 -10 ------- Run | Yrd Mat Sub Combat Hostiles Destroyed 16 | . 10 6 Guns 12 | . 10 2 Cannons 3 | . . 3 AOE 1 | . . 1 Classes Destroyed 9 | . 7 2 Worker 1 | . 1 . Builder 2 | . 2 . Hauler 2 | . 2 . Operator 2 | . 2 . Watcher 3 | . 3 . Swarmer 6 | . 3 3 Grunt 8 | . 7 1 Sentry 1 | . . 1 Subdweller 1 | . . 1 Best Kill Streak 5 | . 5 5 Combat Bots Only 5 | . 4 5 Max Kills in Single Turn 1 | . 1 1 Gunslinging . | . . . Exploded 1 | . . 1 Melee . | . . . Uniques/NPCs Destroyed . | . . . Combat | -11 -10 -10 -------- Run | Yrd Mat Sub Hostile Shots Fired 173 | . 64 109 Missed 54 | . 19 35 Damage Taken 1214 | . 489 725 Core 250 | . 76 174 Absorbed by Shields . | . . . Redirected to Shielding 7 | . 7 . Core Remaining (%) 100 | 100 . . Volleys Fired 110 | . 81 29 Largest 2 | . 2 2 Hottest 100 | . 40 100 Shots Fired 185 | . 143 42 Gun 138 | . 124 14 Cannon 40 | . 19 21 Launcher 2 | . . 2 Special 5 | . . 5 Kinetic 178 | . 143 35 Thermal 5 | . . 5 Explosive 2 | . . 2 Electromagnetic . | . . . Robot Hit Streak 6 | . 6 5 Robot Miss Streak 7 | . 5 7 Penetration Max . | . . . Secondary Targets 2 | . 2 . Max Gunslinging Chain 1 | . 1 . Shots Hit Robots 91 | . 71 20 Core Hits 38 | . 29 9 Critical Kills 1 | . 1 . Critical Parts Destroyed . | . . . Critical Strikes 3 | . 1 2 Destroy 1 | . 1 . Blast 2 | . . 2 Melee Attacks . | . . . Impact . | . . . Slashing . | . . . Piercing . | . . . Sneak Attacks . | . . . Combat Hostiles . | . . . Follow-up Attacks . | . . . Damage Inflicted 1360 | . 951 409 Guns 877 | . 794 83 Cannons 402 | . 157 245 Explosions 57 | . . 57 Melee . | . . . Ramming . | . . . Kinetic 1279 | . 951 328 Thermal 24 | . . 24 Explosive 57 | . . 57 Electromagnetic . | . . . Impact . | . . . Slashing . | . . . Piercing . | . . . Highest Corruption 2 | . 2 2 Average Corruption 2 | . 2 2 Corruption Purged . | . . . Corruption Blocked . | . . . Effects 15 | . 8 7 Message Errors 3 | . 3 . Matter Fused 8 | . 3 5 Heat Flow Errors 2 | . . 2 Energy Discharges 1 | . 1 . Data Loss (major) 1 | . 1 . Overload Shots . | . . . Overflow Damage . | . . . Projectiles . | . . . Explosions . | . . . Melee . | . . . Knockbacks 1 | . 1 . Impact . | . . . Kinetic 1 | . 1 . Secondary . | . . . Self-Inflicted Damage . | . . . Shots . | . . . Rammed . | . . . Targets Rammed . | . . . Kicked . | . . . Crushed . | . . . Highest Temperature 235 | . 70 235 Average Temperature 41 | . 29 78 Received Heat Transfer 411 | . 258 153 Siege Activations . | . . . Robots Corrupted . | . . . Combat Hostiles . | . . . Parts Fried . | . . . Impact Corruptions . | . . . Robots Melted . | . . . Combat Hostiles . | . . . Parts Melted . | . . . Heat Transferred 50 | . . 50 Parts Sabotaged . | . . . Parts Stolen . | . . . Parts Stripped . | . . . Power Chain Reactions . | . . . Alert | -11 -10 -10 ------- Run | Yrd Mat Sub Peak Influence 245 | . 245 . Initial . | . . . Average 73 | . 78 . Maximum Alert Level 1 | . 1 . Low Security (%) 96 | 100 95 . Level 1 3 | . 4 . Level 2 . | . . . Level 3 . | . . . Level 4 . | . . . Level 5 . | . . . High Security . | . . . Max Security . | . . . Squads Dispatched 4 | . 4 . Investigation 2 | . 2 . Extermination . | . . . Reinforcement 2 | . 2 . Assault . | . . . Garrison . | . . . Intercept . | . . . Searches Triggered . | . . . Construction Impeded . | . . . Haulers Reinforced . | . . . Active Scanning Responses . | . . . Cargo Convoy Interrupts . | . . . Stealth | -11 -10 -10 --------- Run | Yrd Mat Sub Distress Signals 1 | . 1 . Communications Jammed . | . . . Distress Signals . | . . . Times Spotted 65 | . 22 43 Peak Tracking Total 5 | . 3 5 Tactical Retreats 2 | . . 2 Traps | -11 -10 -10 ------- Run | Yrd Mat Sub Traps Triggered 5 | . 3 2 Indirectly . | . . . Trap Hack Attempts . | . . . Triggered . | . . . Disarmed . | . . . Reprogrammed . | . . . Reused . | . . . Traps Extracted . | . . . Installed . | . . . Triggered . | . . . Machines | -11 -10 -10 ---------- Run | Yrd Mat Sub Machines Disabled . | . . . Max in Single Turn . | . . . Machines Repaired . | . . . Machines Dismantled . | . . . Machines Sabotaged . | . . . Overloaded Fab Kills . | . . . Hacking | -11 -10 -10 --------- Run | Yrd Mat Sub Machines Accessed 5 | . 4 1 Terminals 2 | . 2 . Fabricators . | . . . Repair Stations . | . . . Recycling Units 2 | . 2 . Scanalyzers . | . . . Garrison Access . | . . . Total Hacks 9 | . 8 1 Successful 7 | . 6 1 Failed 2 | . 2 . Catastrophic . | . . . Database Lockouts . | . . . Manual . | . . . Terminals 4 | . 4 . Fabricators . | . . . Repair Stations . | . . . Recycling Units 4 | . 4 . Scanalyzers . | . . . Garrison Access . | . . . Terminal Hacks 4 | . 3 1 Record 1 | . . 1 Recycling Unit Index 1 | . 1 . Scanalyzer Index 1 | . 1 . Zone Layout 1 | . 1 . Fabricator Hacks . | . . . Repair Station Hacks . | . . . Recycling Unit Hacks 3 | . 3 . Report Inventory 1 | . 1 . Retrieve Matter 2 | . 2 . Scanalyzer . | . . . Garrison Access Hacks . | . . . Unauthorized Hacks . | . . . Terminals . | . . . Fabricators . | . . . Repair Stations . | . . . Recycling Units . | . . . Scanalyzers . | . . . Garrison Access . | . . . Data Cores Recovered . | . . . Used . | . . . Hacking Detections 3 | . 3 . Full Trace Events . | . . . Feedback Events . | . . . Feedback Blocked . | . . . Robot Schematics Acquired . | . . . Robots Built . | . . . Authchips . | . . . Time . | . . . Total Robot Build Rating . | . . . Part Schematics Acquired . | . . . Parts Built . | . . . Authchips . | . . . Time . | . . . Total Part Build Rating . | . . . Parts Repaired . | . . . Time . | . . . Parts Recycled . | . . . Recycled Matter . | . . . Retrieved Matter 67 | . 67 . Retrieved Components . | . . . Parts Scanalyzed . | . . . Part Schematics Acquired . | . . . Parts Damaged . | . . . Bothacking | -11 -10 -10 ------------ Run | Yrd Mat Sub Used RIF Installer . | . . . Robots Hacked . | . . . Non-combat . | . . . Combat . | . . . Robot Hacks Applied . | . . . Relay Couplers Released . | . . . Fabnet Peak Effective % . | . . . Robots Rewired . | . . . Allies Hacked . | . . . Hacks Repelled . | . . . Allies | -11 -10 -10 -------- Run | Yrd Mat Sub Total Allies . | . . . Largest Group . | . . . Highest-Rated Group . | . . . Highest-Rated Ally . | . . . Total Orders . | . . . Ally Attacks . | . . . Total Damage . | . . . Kills . | . . . Allies Corrupted . | . . . Allies Melted . | . . . Intel | -11 -10 -10 ------- Run | Yrd Mat Sub Robot Analysis Total . | . . . Derelict Logs Recovered 1 | . . 1 Drone Launches . | . . . Drone Recoveries . | . . . Exploration | -11 -10 -10 ------------- Run | Yrd Mat Sub Turns Passed 1705 | 63 1042 600 Spaces Moved 1653 | 53 1037 563 Core 53 | 19 13 21 Treads . | . . . Legs 318 | 34 284 . Wheels 373 | . . 373 Hover 741 | . 572 169 Flight 168 | . 168 . Fastest Speed 37 | 50 37 56 Average Speed 79 | 94 74 89 Slowest Speed 250 | 120 150 250 Overloaded Moves . | . . . Propulsion Burnouts . | . . . Robots Hopped . | . . . Cave-ins Triggered . | . . . Exploration Rate (%) 43 | 3 94 33 Regions Visited 2 Branch Regions 1 Pre-discovered Areas . | . . . Known Exits Taken 1 | . 1 . Unknown Exits Taken 1 | 1 . . Scrap Searched 2 | . . 2 Spaces Dug . | . . . Terrain Destroyed 12 | . . 12 Melee . | . . . Projectile . | . . . AOE 12 | . . 12 Terrain Rammed . | . . . Walls Destroyed . | . . . Machines Disabled . | . . . Actions | -11 -10 -10 --------- Run | Yrd Mat Sub Total 1844 | 65 1172 607 Wait 6 | . 3 3 Move 1651 | 52 1036 563 Hop . | . . . Pick Up 33 | 7 22 4 Fast Attach . | . . . Attach 22 | 6 11 5 Detach . | . . . Swap 7 | . 5 2 Drop 15 | . 14 1 Fire 110 | . 81 29 Melee . | . . . Ram . | . . . Kick . | . . . Crush . | . . . Escape Stasis . | . . . Rewire . | . . . Trap . | . . . Miscellaneous . | . . . Route ------- -11/Scrapyard -10/Materials (discovered 6 exits: *Mat x3 / *Min x2 / *Sub) -10/Subcaves (discovered 1 exit: *Mat) History --------- Turn | Location | Event 9 | -11/Scrapyard | Discovered new exit (range 16) 64 | -11/Scrapyard | Entered Materials 64 | -10/Materials | Discovered new exit (range 12) 192 | -10/Materials | Discovered new exit (range 16) 312 | -10/Materials | Build established: Mutant 630 | -10/Materials | Lost 4 parts (2n2u) 677 | -10/Materials | Discovered new exit (range 16) 720 | -10/Materials | Identified exit to Materials 804 | -10/Materials | Identified exit to Mines 928 | -10/Materials | Discovered exit to Mines (range 7) 1029 | -10/Materials | Discovered exit to Materials (range 4) 1089 | -10/Materials | Discovered new exit (range 11) 1104 | -10/Materials | Identified exit to Subcaves 1106 | -10/Materials | Entered Subcaves 1251 | -10/Subcaves | Core integrity fell below 50% 1253 | -10/Subcaves | Learned Materials terminal intel 1284 | -10/Subcaves | Lost 3 parts (1p1n1w) 1338 | -10/Subcaves | Discovered new exit (range 9) 1347 | -10/Subcaves | Identified exit to Materials 1526 | -10/Subcaves | Visited Clippyterm 1678 | -10/Subcaves | Core integrity fell below 20% 1706 | -10/Subcaves | Destroyed by S-10 Pest with Light Assault Rifle Last Messages --------------- System corrupted: Heat flow error (+214). System corrupted: Matter fused (-6). System corrupted: Heat flow error (+274). A thin wall crumbles away, revealing a door. The door opens automatically. Connecting with Clippyterm... >>Record! "Letterhead" It looks like you're writing a letter, sorry I don't know how to do that. System corrupted: Matter fused (-10). DN-FSN(u) tweaks Twisted Machinery. S-10 Pest destroyed. Lgt. Cannon destroyed. Flamer destroyed. S-10 Pest destroyed. Subatomizers dissect the Flight Unit. Lgt. Ion Engine fries itself beyond repair. Barrage Gun destroyed. Lgt. Assault Rifle fries itself beyond repair. Wheel destroyed. Map ----- +----------------------------------------------------+ | ????????# ### ####??# ###### #???????? | | ????????## #####?????# #### #???????? | | ?????????### #??####### #??????? | | ??????????## ### ##### ########??????? | | ??????????# ## #??## #?????????????? | | ??????????# #?### ##?????????????? | | ????????####### ##?# ###??????????????? | | ????????# #???# #### ##????????????????? | | ????????# ???#" #?????????????????? | | ????????# ???#" #?????????????????? | | ???????## ##?## ## ###???????????????? | | ???????# " "##?# ####### ##??????????????? | | ???????#"""""#### #???## #??????????????? | | ???????# " """""##??# ##??????????????? | | ???????# """"#### ##???????????????? | | ???????# #"# # ##????????????????? | | ????????# #?????????????????? | | ?????????# ###???????????????? | | ?????????# #???????????????? | | ????????## ####### ##???????????????? | | ????????# ###???#### ##????????????????? | | ????????# ##?????# ### ##????????????????? | | ????????# ###????# ### #????????????????? | | ????????# ###### ### #????????????????? | | ????????## #### #????????????????? | | ?????????# ## @#??# ##????????????????? | | ?????????## ## ######?????????????????? | | ??????????# s %= % x"???????????? | | ??????????# =%% ??????????? | | ??????????# %% "???????????? | | ??????????# #### "??????????? | | ?????????# #????? ???????????? | | ???????# #?????"???????????? | | ???????# ?????????????????? | | ???????## #### ????????????????? | | ????????###### #???# ??????????????? | | ?????????????###### #???? ?????????????? | | ??????????????????# #???? ??????????????? | | ??????????????????# #????????????????????? | | ??????????????????# ????????????????????? | | ??????????????????#### ????????????????????? | | ?????????????????????? ?????????????????????? | | ?????????????????????? ???????????????????????? | | ?????????????????????????????????????????????????? | | ?????????????????????????????????????????????????? | | ?????????????????????????????????????????????????? | | ?????????????????????????????????????????????????? | | ?????????????????????????????????????????????????? | | ?????????????????????????????????????????????????? | | ?????????????????????????????????????????????????? | +----------------------------------------------------+ Best States ------------- Heat Dissipation 25 Energy Generation 12 Energy Capacity 265 Matter Stores 300 Matter Capacity 300 Sight Range 16 Robot Scan Range 14 Terrain Scan Density 10 ECM Strength 1 Additional Mass Support 6 Armor Coverage 150 Propulsion Shielding 33 Evasion (%) 62 Item Schematics ----------------- None Robot Schematics ------------------ None Fabricated ------------ Nothing Alien Tech Used ----------------- None Achievements -------------- None Challenges ------------ None Game ------ Seed ArcNeutronBay Manual? 0 Play Time 00:23:09 Cumulative 3.9 hours Start 2024.04.05 @ 12:44:33 End 2024.04.05 @ 13:07:04 Sessions 3 Manual Loads 0 Difficulty Rogue Special Mode None Game No. 8 Rogue 8 Adventurer 0 Explorer 0 Win Type - Total 0 Types 0/0/0/0/0/0/0/0/0 Lore% 10 Gallery% 7 Achievement% 8 Wizard Run 0 Options --------- Layout 1 ASCII 0 Keyboard 0 Movement Arrows Keybinds 0 Fullscreen 1 Font 24/Smallcaps Map View 50x35 Zoom Use 0% Tactical HUD 0 Map Filters NONE Filters NONE Steam 1 RUN: 8a9718a6-847d-4966-a86d-f3bad32e8229